bitfinex/quotes_BTCUSD_20250922
["timestamp","ask_amount","ask_price","bid_price","bid_amount"]
[1758552792316,1.33527662,113110.0,113100.0,0.08573941]
[1758552792569,1.33727662,113110.0,113100.0,0.08573941]
[1758552792834,1.33827662,113110.0,113100.0,0.08573941]
[1758552793825,0.95574772,113110.0,113100.0,0.08573941]
[1758552794046,1.33827662,113110.0,113100.0,0.08573941]
[1758552794462,1.33827662,113110.0,113100.0,0.00046974]
[1758552797495,0.95574772,113110.0,113100.0,0.00046974]
[1758552797692,1.33827662,113110.0,113100.0,0.00046974]
[1758552798003,1.05403662,113110.0,113100.0,0.00046974]
[1758552798249,1.33827662,113110.0,113100.0,0.00046974]
[1758552798714,0.66828772,113110.0,113100.0,0.10550287]
[1758552798922,0.66828772,113110.0,113100.0,0.08781941]
[1758552799115,0.67135772,113110.0,113100.0,0.10550287]
[1758552799259,0.66828772,113110.0,113100.0,0.10550287]
[1758552799725,1.05388662,113110.0,113100.0,0.08573941]
[1758552800209,0.67135772,113110.0,113100.0,0.08573941]
[1758552800434,1.05388662,113110.0,113100.0,0.08573941]
[1758552800637,0.71388662,113110.0,113100.0,0.10342287]
[1758552801694,0.99808662,113110.0,113100.0,0.08573941]
[1758552802312,0.99808662,113110.0,113100.0,0.00046974]
[1758552802313,1.33808662,113110.0,113100.0,0.00046974]
[1758552808985,0.7225289,113110.0,113100.0,0.00046974]
[1758552809184,1.28112792,113110.0,113100.0,0.00046974]
[1758552811035,1.30905792,113110.0,113100.0,0.00046974]
[1758552811302,1.21962405,113110.0,113100.0,0.00046974]
[1758552811554,1.31522405,113110.0,113100.0,0.00046974]
[1758552811791,1.21962405,113110.0,113100.0,0.00046974]
[1758552813061,0.93546405,113110.0,113100.0,0.00046974]
[1758552813513,1.21962405,113110.0,113100.0,0.00046974]
[1758552813756,0.93546405,113110.0,113100.0,0.00046974]
[1758552814268,1.21962405,113110.0,113100.0,0.00046974]
[1758552814720,1.21659405,113110.0,113100.0,0.00046974]
[1758552816179,0.93243405,113110.0,113100.0,0.00046974]
[1758552816383,0.80714515,113110.0,113100.0,0.00566974]
[1758552816559,1.18967405,113110.0,113100.0,0.02919974]
[1758552816778,0.56551405,113110.0,113100.0,0.00566974]
[1758552816980,0.84967405,113110.0,113100.0,0.00566974]
[1758552817384,0.87457405,113110.0,113100.0,0.00566974]
[1758552817755,0.87459746,113110.0,113100.0,0.00566974]
[1758552817925,0.87661746,113110.0,113100.0,0.00566974]
[1758552818129,0.87661746,113110.0,113100.0,0.00246974]
[1758552818325,0.85171746,113110.0,113100.0,0.00246974]
[1758552818557,0.46716856,113110.0,113100.0,0.00566974]
[1758552818768,0.75409081,113110.0,113100.0,0.00566974]
[1758552818942,0.77899081,113110.0,113100.0,0.00566974]
[1758552819196,0.78101081,113110.0,113100.0,0.00246974]
[1758552819406,0.78101081,113110.0,113100.0,0.2717]
[1758552820955,0.78101081,113110.0,113100.0,0.2749]
[1758552821175,0.78097081,113110.0,113100.0,0.2749]
[1758552821383,0.49404997,113110.0,113100.0,0.2717]
[1758552821563,1.41092165,113110.0,113100.0,0.2697]
[1758552824103,1.41917797,113110.0,113100.0,0.2697]
[1758552825145,1.41917797,113110.0,113100.0,0.00046974]
[1758552828053,1.41913797,113110.0,113100.0,0.00046974]
[1758552828256,1.50473797,113110.0,113100.0,0.00046974]
[1758552828636,1.50473797,113110.0,113100.0,0.00246974]
[1758552828637,0.5481867,113110.0,113100.0,0.00246974]
[1758552828843,0.79993122,113110.0,113100.0,0.00566974]
[1758552829108,1.11093122,113110.0,113100.0,0.00566974]
[1758552829499,1.11093122,113110.0,113100.0,0.00046974]
[1758552829702,1.39785206,113110.0,113100.0,0.00046974]
[1758552829953,0.82401038,113110.0,113100.0,0.00046974]
[1758552830156,1.40088206,113110.0,113100.0,0.00046974]
[1758552830299,1.40913712,113110.0,113100.0,0.00046974]
[1758552834267,1.40088206,113110.0,113100.0,0.00046974]
[1758552836130,1.11680206,113110.0,113100.0,0.00046974]
[1758552836343,1.49640206,113110.0,113100.0,0.00046974]
[1758552837213,1.08887206,113110.0,113100.0,0.00249974]
[1758552837418,0.82462122,113110.0,113100.0,0.00550974]
[1758552837607,1.39554206,113110.0,113100.0,0.00550974]
[1758552837824,1.39554206,113110.0,113100.0,0.00249974]
[1758552838026,1.3893507,113110.0,113100.0,0.00249974]
[1758552839167,1.3893107,113110.0,113100.0,0.00249974]
[1758552839642,1.10238986,113110.0,113100.0,0.00249974]
[1758552840087,0.81640986,113110.0,113100.0,0.00550974]
[1758552840314,0.79373986,113110.0,113100.0,0.00550974]
[1758552840717,1.07769986,113110.0,113100.0,0.00550974]
[1758552840907,1.10036986,113110.0,113100.0,0.00550974]
[1758552841421,1.10234986,113110.0,113100.0,0.00249974]
[1758552841837,1.10234986,113110.0,113100.0,0.00550974]
[1758552842487,0.81542902,113110.0,113100.0,0.00046974]
[1758552842696,1.3922807,113110.0,113100.0,0.00046974]
[1758552847391,1.10535986,113110.0,113100.0,0.00046974]
[1758552847592,1.3922807,113110.0,113100.0,0.00046974]
[1758552854689,0.75069197,113090.0,113080.0,0.30683582]
[1758552854901,0.75005058,113090.0,113080.0,0.39210549]
[1758552855126,0.77448058,113090.0,113080.0,0.39210549]
[1758552855330,0.77448058,113090.0,113080.0,0.39422549]
[1758552856092,0.77448058,113090.0,113080.0,0.40022549]
[1758552856923,0.77448058,113090.0,113080.0,0.40222549]
[1758552857658,1.06436142,113090.0,113080.0,0.40010549]
[1758552857962,1.06436142,113090.0,113080.0,0.13087523]
[1758552858609,0.77744058,113090.0,113080.0,0.13087523]
[1758552858830,0.80402924,113090.0,113080.0,0.13087523]
[1758552860258,1.09095008,113090.0,113080.0,0.13087523]
[1758552861272,1.08795008,113090.0,113080.0,0.13087523]
[1758552861475,1.08795008,113090.0,113080.0,0.13299523]
[1758552861678,0.80102924,113090.0,113080.0,0.13299523]
[1758552862417,1.08795008,113090.0,113080.0,0.13299523]
[1758552863197,0.80102924,113090.0,113080.0,0.13299523]
[1758552863615,0.2303084,113090.0,113080.0,0.13299523]
[1758552863797,0.80102924,113090.0,113080.0,0.13604523]
[1758552863991,0.80098924,113090.0,113080.0,0.13604523]
[1758552865290,0.5140684,113090.0,113080.0,0.13604523]
[1758552865730,0.80098924,113090.0,113080.0,0.13604523]
[1758552866562,0.49082924,113090.0,113080.0,0.13604523]
[1758552866770,0.49082924,113090.0,113080.0,0.15991523]
[1758552866927,0.77458924,113090.0,113080.0,0.15991523]
[1758552868556,0.77458924,113090.0,113080.0,0.13604523]
[1758552868741,0.79909924,113090.0,113080.0,0.13604523]
[1758552870176,0.5121784,113090.0,113080.0,0.13604523]
[1758552870378,0.79909924,113090.0,113080.0,0.13604523]
[1758552870585,0.80112924,113090.0,113080.0,0.13604523]
[1758552870992,0.80418924,113090.0,113080.0,0.13087523]
[1758552871206,0.80112924,113090.0,113080.0,0.13087523]
[1758552871408,0.80112924,113090.0,113080.0,0.13283523]
[1758552871832,0.80418924,113090.0,113080.0,0.13087523]
[1758552872033,1.14112924,113090.0,113080.0,0.13087523]
[1758552872244,1.43111008,113090.0,113080.0,0.13087523]
[1758552872442,1.14418924,113090.0,113080.0,0.13087523]
[1758552872941,1.14418924,113090.0,113080.0,0.12287523]
[1758552873297,1.14418924,113090.0,113080.0,0.12587523]
[1758552873498,0.8572684,113090.0,113080.0,0.12587523]
[1758552873707,1.14418924,113090.0,113080.0,0.12587523]
[1758552880601,1.24001942,113090.0,113080.0,0.12587523]
[1758552883145,0.8572684,113090.0,113080.0,0.12587523]
[1758552883349,1.24001942,113090.0,113080.0,0.12587523]
[1758552883475,0.8572684,113090.0,113080.0,0.12587523]
[1758552883688,1.24001942,113090.0,113080.0,0.12587523]
[1758552887935,1.24001942,113090.0,113080.0,0.04060556]
[1758552888137,1.23492942,113090.0,113080.0,0.04060556]
[1758552888498,1.23468942,113090.0,113080.0,0.04060556]
[1758552888761,1.33032942,113090.0,113080.0,0.04060556]
[1758552888959,0.9475784,113090.0,113080.0,0.04060556]
[1758552889173,1.33032942,113090.0,113080.0,0.04060556]
[1758552889546,1.33032942,113090.0,113080.0,0.03860556]
[1758552889759,1.33032942,113090.0,113080.0,0.03760556]
[1758552889919,1.33232942,113090.0,113080.0,0.03760556]
[1758552891479,0.95316942,113090.0,113080.0,0.03760556]
[1758552891662,0.5704184,113090.0,113080.0,0.03760556]
[1758552891859,1.33228942,113090.0,113080.0,0.03760556]
[1758552892709,0.95316942,113090.0,113080.0,0.03760556]
[1758552893073,1.33224942,113090.0,113080.0,0.03760556]
[1758552893275,1.33733942,113090.0,113080.0,0.03760556]
[1758552893814,0.95825942,113090.0,113080.0,0.03760556]
[1758552894392,1.33733942,113090.0,113080.0,0.03760556]
[1758552899688,1.33729942,113090.0,113080.0,0.03760556]
[1758552900393,1.33725942,113090.0,113080.0,0.03760556]
[1758552900630,1.72001044,113090.0,113080.0,1e-08]
[1758552900846,1.72618398,113090.0,113080.0,1e-08]
[1758552901546,1.72618484,113090.0,113080.0,1e-08]
[1758552901754,1.72001044,113090.0,113080.0,1e-08]
[1758552901965,1.72618505,113090.0,113080.0,1e-08]
[1758552902431,1.32920055,113080.0,113070.0,1e-08]
[1758552902615,1.30806966,113080.0,113070.0,1e-08]
[1758552902873,1.83254222,113080.0,113070.0,1e-08]
[1758552903116,2.19397133,113080.0,113070.0,1e-08]
[1758552903310,1.43595781,113080.0,113070.0,1e-08]
[1758552903555,1.69949624,113080.0,113070.0,1e-08]
[1758552903984,1.32053624,113080.0,113070.0,1e-08]
[1758552904198,2.08209624,113080.0,113070.0,1e-08]
[1758552904340,2.07592445,113080.0,113070.0,1e-08]
[1758552904544,1.32053153,113080.0,113070.0,1e-08]
[1758552904744,1.69949153,113080.0,113070.0,1e-08]
[1758552905213,1.70149153,113080.0,113070.0,1e-08]
[1758552905419,1.32253153,113080.0,113070.0,1e-08]
[1758552905600,1.70149153,113080.0,113070.0,1e-08]
[1758552905863,1.70549153,113080.0,113070.0,1e-08]
[1758552906300,0.59455343,113080.0,113070.0,0.00197001]
[1758552906471,0.95011343,113080.0,113070.0,0.00197001]
[1758552906676,1.29011343,113080.0,113070.0,0.00508001]
[1758552906881,1.31351343,113080.0,113070.0,0.00197001]
[1758552907307,1.31351343,113080.0,113070.0,0.00508001]
[1758552907505,1.31351343,113080.0,113070.0,0.00197001]
[1758552907724,1.31657343,113080.0,113070.0,1e-08]
[1758552908026,1.28812343,113080.0,113070.0,0.02823001]
[1758552908158,0.90916343,113080.0,113070.0,0.02823001]
[1758552908363,0.92873241,113080.0,113070.0,0.00508001]
[1758552908573,1.31347343,113080.0,113070.0,0.00197001]
[1758552909438,1.31347343,113080.0,113070.0,0.00508001]
[1758552909633,0.90916343,113080.0,113070.0,0.00508001]
[1758552910038,1.28808343,113080.0,113070.0,0.02823001]
[1758552911154,1.28808343,113080.0,113070.0,0.00508001]
[1758552911785,1.31148343,113080.0,113070.0,0.00508001]
[1758552912228,0.52641241,113080.0,113070.0,0.02823001]
[1758552912691,0.46965241,113080.0,113070.0,0.11349968]
[1758552914047,0.85240343,113080.0,113070.0,0.11349968]
[1758552914257,0.84840343,113080.0,113070.0,0.11349968]
[1758552914550,0.84940343,113080.0,113070.0,0.09034968]
[1758552915117,0.84740343,113080.0,113070.0,0.09034968]
[1758552915331,0.84485695,113080.0,113070.0,0.09034968]
[1758552915542,1.56968797,113080.0,113070.0,1e-08]
[1758552915746,1.59532797,113080.0,113070.0,1e-08]
[1758552915950,1.21257695,113080.0,113070.0,1e-08]
[1758552916147,0.83337187,113080.0,113070.0,1e-08]
[1758552916367,1.21612289,113080.0,113070.0,1e-08]
[1758552917850,1.70527447,113080.0,113070.0,1e-08]
[1758552918047,0.60646517,113070.0,113060.0,1e-08]
[1758552918244,0.70210517,113070.0,113060.0,1e-08]
[1758552918473,0.72982517,113070.0,113060.0,1e-08]
[1758552918674,0.68299259,113070.0,113060.0,1e-08]
[1758552919223,0.68399259,113070.0,113060.0,1e-08]
[1758552919625,0.68499259,113070.0,113060.0,1e-08]
[1758552920006,0.30224157,113070.0,113060.0,1e-08]
[1758552920221,0.68499259,113070.0,113060.0,1e-08]
[1758552921503,0.30224157,113070.0,113060.0,1e-08]
[1758552921735,0.68499259,113070.0,113060.0,1e-08]
[1758552923211,0.77026226,113070.0,113060.0,1e-08]
[1758552923635,0.77380882,113070.0,113060.0,1e-08]
[1758552924481,0.67816882,113070.0,113060.0,1e-08]
[1758552924842,0.87303915,113070.0,113060.0,0.00513001]
[1758552925081,0.96867915,113070.0,113060.0,0.00513001]
[1758552925280,0.96867915,113070.0,113060.0,0.00208001]
[1758552925697,0.58991915,113070.0,113060.0,0.00513001]
[1758552925920,0.96863915,113070.0,113060.0,0.00513001]
[1758552926072,0.56517915,113070.0,113060.0,0.00513001]
[1758552926277,0.96655915,113070.0,113060.0,0.00513001]
[1758552926667,0.96863915,113070.0,113060.0,0.00513001]
[1758552926871,0.84825915,113070.0,113060.0,0.00513001]
[1758552927069,0.94389915,113070.0,113060.0,0.00513001]
[1758552927319,0.96991915,113070.0,113060.0,0.00208001]
[1758552928383,0.96991915,113070.0,113060.0,1e-08]
[1758552929160,0.96991915,113070.0,113060.0,0.00195001]
[1758552929398,0.58716813,113070.0,113060.0,0.00195001]
[1758552929804,0.96991915,113070.0,113060.0,0.00195001]
[1758552930624,0.97293915,113070.0,113060.0,1e-08]
[1758552931062,1.05820882,113070.0,113060.0,1e-08]
[1758552931639,1.07933971,113070.0,113060.0,1e-08]
[1758552931844,1.05820882,113070.0,113060.0,1e-08]
[1758552932671,0.17692852,113040.0,113020.0,0.0002]
[1758552932877,1.36364486,113030.0,113020.0,0.0002]
[1758552933087,1.41656575,113030.0,113020.0,0.0002]
[1758552933283,1.41929421,113030.0,113020.0,0.0002]
[1758552933923,1.41976337,113030.0,113020.0,0.0002]
[1758552934448,1.41976337,113030.0,113010.0,1e-08]
[1758552934449,0.17695983,113020.0,113010.0,1e-08]
[1758552934638,1.03847977,113020.0,113010.0,1e-08]
[1758552934849,1.06751977,113020.0,113010.0,1e-08]
[1758552935230,0.17699115,113000.0,112990.0,0.00026452]
[1758552935464,0.93838217,113000.0,112990.0,0.00026452]
[1758552935670,0.96742217,113000.0,112990.0,0.00026452]
[1758552935876,0.99403701,113000.0,112990.0,0.00026452]
[1758552936257,1.4922096,113000.0,112990.0,0.00026452]
[1758552936425,1.4922096,113000.0,112990.0,0.00426452]
[1758552936426,1.50088039,113000.0,112990.0,0.00426452]
[1758552936620,0.73948937,113000.0,112990.0,0.00426452]
[1758552936853,0.9997278,113000.0,112990.0,0.00621452]
[1758552937479,0.9997278,113000.0,112990.0,0.00939452]
[1758552937629,0.5950278,113000.0,112990.0,0.00939452]
[1758552938011,0.8780278,113000.0,112990.0,0.00939452]
[1758552938215,0.8780278,113000.0,112990.0,0.01139452]
[1758552938434,0.9040478,113000.0,112990.0,0.00626452]
[1758552938618,0.9070678,113000.0,112990.0,0.00626452]
[1758552939020,0.9040478,113000.0,112990.0,0.00821452]
[1758552939440,0.5950278,113000.0,112990.0,0.00821452]
[1758552939641,0.8780278,113000.0,112990.0,0.01139452]
[1758552939859,1.2180278,113000.0,112990.0,0.01139452]
[1758552940250,1.2420178,113000.0,112990.0,0.01139452]
[1758552940659,1.2180678,113000.0,112990.0,0.01139452]
[1758552940865,1.2180678,113000.0,112990.0,0.03441452]
[1758552940866,0.9350278,113000.0,112990.0,0.03441452]
[1758552941008,0.55227678,113000.0,112990.0,0.03441452]
[1758552941210,1.2180678,113000.0,112990.0,0.03441452]
[1758552942045,1.2180678,113000.0,112990.0,0.01139452]
[1758552942653,1.4363407,113000.0,112990.0,0.01139452]
[1758552942850,1.4363407,113000.0,112990.0,0.00626452]
[1758552943051,1.4393607,113000.0,112990.0,0.00626452]
[1758552943258,1.41644638,113000.0,112990.0,0.01139452]
[1758552943488,1.41847638,113000.0,112990.0,0.00821452]
[1758552943659,1.44246638,113000.0,112990.0,0.00821452]
[1758552947973,1.44242638,113000.0,112990.0,0.01139452]
[1758552948328,1.44242638,113000.0,112990.0,0.00821452]
[1758552948534,1.23207289,113000.0,112990.0,0.00821452]
[1758552948769,1.40906404,113000.0,112990.0,0.00821452]
[1758552948934,1.38304404,113000.0,112990.0,0.00821452]
[1758552949130,1.38304404,113000.0,112990.0,0.01139452]
[1758552949709,1.40714075,113000.0,112990.0,0.00821452]
[1758552949831,1.40714075,113000.0,112990.0,0.00626452]
[1758552950051,1.41016075,113000.0,112990.0,0.00626452]
[1758552950455,1.12414075,113000.0,112990.0,0.00821452]
[1758552950655,1.09812075,113000.0,112990.0,0.01139452]
[1758552950858,1.09361879,113000.0,112990.0,0.01139452]
[1758552951277,0.81061879,113000.0,112990.0,0.01139452]
[1758552951484,1.09361879,113000.0,112990.0,0.01139452]
[1758552952524,0.83010683,113000.0,112990.0,0.01139452]
[1758552952730,1.09361879,113000.0,112990.0,0.01139452]
[1758552953405,0.52311683,113000.0,112990.0,0.01139452]
[1758552953620,0.46611683,113000.0,112990.0,0.11968419]
[1758552953816,0.46611683,113000.0,112990.0,0.40718615]
[1758552954019,0.18311683,113000.0,112990.0,0.40718615]
[1758552954179,0.46611683,113000.0,112990.0,0.58419296]
[1758552954387,0.00612568,113000.0,112990.0,0.58419296]
[1758552954590,0.18311683,113000.0,112990.0,0.58419296]
[1758552954996,0.00612568,113000.0,112990.0,0.58419296]
[1758552955577,0.46606116,113010.0,113000.0,0.17699115]
[1758552955795,0.45993548,113010.0,113000.0,0.57791278]
[1758552956266,0.17697548,113010.0,113000.0,0.58695765]
[1758552956695,0.46876782,113020.0,113000.0,0.87445961]
[1758552956895,0.47490718,113020.0,113010.0,0.08526967]
[1758552957105,0.47490718,113020.0,113010.0,0.11341967]
[1758552957689,0.47490718,113020.0,113010.0,0.09039967]
[1758552957963,0.00613936,113020.0,113010.0,0.92253097]
[1758552958196,0.00046916,113030.0,113020.0,0.20711173]
[1758552958439,0.00046916,113030.0,113020.0,1.15488728]
[1758552958701,0.00046916,113030.0,113020.0,0.89184532]
[1758552958943,0.00046916,113030.0,113020.0,1.51934728]
[1758552959847,0.00046916,113030.0,113020.0,1.29934136]
[1758552960048,0.00046916,113030.0,113020.0,1.27818946]
[1758552960328,0.00046916,113030.0,113020.0,1.56110946]
[1758552960555,0.00046916,113030.0,113020.0,0.36318554]
[1758552960789,0.00661545,113030.0,113020.0,0.36318554]
[1758552961029,0.00046916,113030.0,113020.0,0.73719694]
[1758552961274,0.00046916,113030.0,113020.0,0.74919694]
[1758552962353,0.00046916,113030.0,113020.0,1.03207694]
[1758552964703,0.00046916,113030.0,113020.0,1.30177694]
[1758552968117,0.00046916,113030.0,113020.0,1.31177694]
[1758552969695,0.00046916,113030.0,113020.0,1.02889694]
[1758552969906,0.00046916,113030.0,113020.0,1.28821694]
[1758552970121,0.00046916,113030.0,113020.0,1.31165694]
[1758552970553,0.00046916,113030.0,113020.0,1.75965694]
[1758552970687,0.00046916,113030.0,113020.0,1.47689694]
[1758552970892,0.00046916,113030.0,113020.0,1.75965694]
[1758552971942,0.00046916,113030.0,113020.0,1.45345694]
[1758552972133,0.02516916,113030.0,113020.0,1.35718554]
[1758552972347,0.02516916,113030.0,113020.0,1.72317694]
[1758552972520,0.00046916,113030.0,113020.0,1.72621694]
[1758552973901,0.00046916,113030.0,113020.0,1.74965694]
[1758552975038,0.00046916,113030.0,113020.0,2.08965694]
[1758552978082,0.00254916,113030.0,113020.0,0.88944571]
[1758552978288,0.02658916,113030.0,113020.0,1.72309694]
[1758552978464,0.02658916,113030.0,113020.0,1.73309694]
[1758552978667,0.20353333,113030.0,113020.0,1.01539694]
[1758552979103,0.20353333,113030.0,113020.0,1.00539694]
[1758552980212,0.00046916,113030.0,113020.0,1.00845694]
[1758552980414,0.00046916,113030.0,113020.0,1.03232694]
[1758552981609,0.00046916,113030.0,113020.0,1.00845694]
[1758552981810,0.00046916,113030.0,113020.0,1.03232694]
[1758552983315,0.00046916,113030.0,113020.0,1.40247884]
[1758552983522,0.00046916,113030.0,113020.0,1.11979884]
[1758552983958,0.00046916,113030.0,113020.0,1.40243884]
[1758552984160,0.00046916,113030.0,113020.0,1.41243884]
[1758552984982,0.00046916,113030.0,113020.0,1.35841694]
[1758552989611,0.00046916,113030.0,113020.0,1.38228694]
[1758552990231,0.17686593,113080.0,113060.0,0.17689722]
[1758552990436,0.17686593,113080.0,113070.0,0.3740114]
[1758552990437,0.1945225,113080.0,113070.0,0.3740114]
[1758552990646,0.1965125,113080.0,113070.0,0.28697416]
[1758552991087,0.2199325,113080.0,113070.0,0.5491254]
[1758552991360,0.2199325,113080.0,113070.0,0.37224383]
[1758552991783,0.2199325,113080.0,113070.0,0.5491254]
[1758552991982,0.2199325,113080.0,113070.0,0.37224383]
[1758552992448,0.2199325,113080.0,113070.0,0.08726967]
[1758552992449,0.2219325,113080.0,113070.0,0.08726967]
[1758552992793,0.2199325,113080.0,113070.0,0.1535935]
[1758552993204,0.2209325,113080.0,113070.0,0.1535935]
[1758552994099,0.2209325,113080.0,113070.0,0.06832383]
[1758552996194,0.1942725,113080.0,113070.0,0.1556735]
[1758552996430,0.2176925,113080.0,113070.0,0.1556735]
[1758552996710,0.2176925,113080.0,113070.0,0.1535935]
[1758552997260,0.2209325,113080.0,113070.0,0.1535935]
[1758552997945,0.1942725,113080.0,113070.0,0.72400875]
[1758552998179,0.1922825,113080.0,113070.0,0.7092706]
[1758552998365,0.1922825,113080.0,113070.0,0.53238903]
[1758552998565,0.2176925,113080.0,113070.0,0.1556735]
[1758552998774,0.2176925,113080.0,113070.0,0.1535935]
[1758552999477,0.20945446,113080.0,113070.0,0.1535935]
[1758552999681,0.20945446,113080.0,113070.0,0.15364069]
[1758553000894,0.20945446,113080.0,113070.0,0.33260226]
[1758553001318,0.20945446,113080.0,113070.0,0.15572069]
[1758553001989,0.20945446,113080.0,113070.0,0.33260226]
[1758553002201,0.21269446,113080.0,113070.0,0.15364069]
[1758553004837,0.18603446,113080.0,113070.0,0.15364069]
[1758553006183,0.18927446,113080.0,113070.0,0.15364069]
[1758553007293,0.18927446,113080.0,113070.0,0.06837102]
[1758553009963,0.21269446,113080.0,113070.0,0.06837102]
[1758553010382,0.21267885,113080.0,113070.0,0.06837102]
[1758553010597,0.20651593,113080.0,113070.0,0.06837102]
[1758553010775,0.21267872,113080.0,113070.0,0.06837102]
[1758553011428,0.48883593,113080.0,113070.0,0.06837102]
[1758553013102,0.48559593,113080.0,113070.0,0.06837102]
[1758553013410,0.48559593,113080.0,113070.0,0.07045102]
[1758553013655,0.17786593,113080.0,113070.0,0.20022884]
[1758553013882,0.17786593,113080.0,113070.0,0.56527704]
[1758553014097,0.17786593,113080.0,113070.0,0.54140704]
[1758553015562,0.17786593,113080.0,113070.0,0.74215861]
[1758553016294,0.001,113080.0,113070.0,1.02443861]
[1758553017411,0.18579642,113090.0,113080.0,0.17686593]
[1758553017641,0.18579642,113090.0,113080.0,0.67313195]
[1758553017862,0.18579642,113090.0,113080.0,0.67213195]
[1758553018298,0.18579642,113090.0,113080.0,0.67217914]
[1758553018520,0.001,113090.0,113080.0,0.67217914]
[1758553018744,0.17785029,113090.0,113080.0,0.67217914]
[1758553019164,0.17785029,113090.0,113080.0,0.95441914]
[1758553019403,0.17785029,113090.0,113080.0,0.95541914]
[1758553020273,0.001,113090.0,113080.0,0.95541914]
[1758553020724,0.17785029,113090.0,113080.0,0.95541914]
[1758553020949,0.17785029,113090.0,113080.0,0.67317914]
[1758553021160,0.17785029,113090.0,113080.0,0.95541914]
[1758553021368,0.17785029,113090.0,113080.0,0.95641914]
[1758553021564,0.17785029,113090.0,113080.0,0.67417914]
[1758553021804,0.17785029,113090.0,113080.0,0.95637914]
[1758553022100,0.001,113090.0,113080.0,0.95637914]
[1758553022965,0.001,113090.0,113080.0,1.33911549]
[1758553023860,0.46792217,113110.0,113090.0,0.17683811]
[1758553024069,0.18572217,113110.0,113100.0,0.48769948]
[1758553024297,0.21192217,113110.0,113100.0,0.08727967]
[1758553024920,0.21192217,113110.0,113100.0,0.08732686]
[1758553025311,0.21192217,113110.0,113100.0,0.08746689]
[1758553025521,0.21292217,113110.0,113100.0,0.08746689]
[1758553025894,0.21692217,113110.0,113100.0,0.15285018]
[1758553026106,0.21692217,113110.0,113100.0,0.53558653]
[1758553026305,0.21692217,113110.0,113100.0,0.71242118]
[1758553026506,0.21692217,113110.0,113100.0,0.71564118]
[1758553026703,0.19072217,113110.0,113100.0,0.71564118]
[1758553027208,0.19072217,113110.0,113100.0,0.75128455]
[1758553027828,0.19072217,113110.0,113100.0,0.5514199]
[1758553028274,0.21495217,113110.0,113100.0,0.72825455]
[1758553028481,0.19072217,113110.0,113100.0,0.72825455]
[1758553028896,0.19072217,113110.0,113100.0,0.5514199]
[1758553029096,0.19072217,113110.0,113100.0,0.8335399]
[1758553029781,0.19072217,113110.0,113100.0,0.72825455]
[1758553029982,0.19072217,113110.0,113100.0,1.01037455]
[1758553030914,0.46061837,113120.0,113100.0,1.01037455]
[1758553031132,0.46625853,113120.0,113100.0,1.03340455]
[1758553031338,0.17681902,113110.0,113100.0,1.03340455]
[1758553031662,0.17681902,113110.0,113100.0,0.75128455]
[1758553032101,0.17681902,113110.0,113100.0,1.03336455]
[1758553032240,0.46825853,113120.0,113100.0,1.03336455]
[1758553032432,0.17681902,113110.0,113100.0,0.6474082]
[1758553032636,0.44402853,113120.0,113100.0,0.6474082]
[1758553033046,0.44402853,113120.0,113110.0,0.00322]
[1758553033252,0.15994853,113120.0,113110.0,0.09049967]
[1758553033495,0.15994853,113120.0,113110.0,0.47323602]
[1758553033700,0.15994853,113120.0,113110.0,0.77835321]
[1758553033903,0.62950232,113130.0,113110.0,0.95517223]
[1758553034073,0.17980339,113120.0,113110.0,0.48394621]
[1758553034275,0.26527232,113130.0,113120.0,0.17680339]
[1758553034503,0.4677198,113140.0,113120.0,0.17892339]
[1758553034710,0.17678776,113130.0,113120.0,0.20388339]
[1758553034916,0.17678776,113130.0,113120.0,0.48597058]
[1758553035086,0.17678776,113130.0,113120.0,0.58666693]
[1758553035423,0.17678776,113130.0,113120.0,0.56384693]
[1758553035635,0.17678776,113130.0,113120.0,0.84588693]
[1758553035819,0.17678776,113130.0,113120.0,0.56384693]
[1758553036049,0.2105998,113140.0,113120.0,0.84588693]
[1758553036255,0.17678776,113130.0,113120.0,0.58666693]
[1758553036399,0.17678776,113130.0,113120.0,0.86870693]
[1758553036799,0.2165998,113140.0,113120.0,0.9539766]
[1758553037029,0.2165998,113140.0,113130.0,0.08526967]
[1758553037204,0.2126598,113140.0,113130.0,0.46812602]
[1758553037403,0.2126598,113140.0,113130.0,0.46612602]
[1758553037637,0.1856798,113140.0,113130.0,0.64605378]
[1758553038139,0.18477214,113140.0,113130.0,1.19780097]
[1758553038321,0.17877214,113140.0,113130.0,1.22062097]
[1758553038521,0.17677214,113140.0,113130.0,1.22062097]
[1758553038720,0.20875214,113140.0,113130.0,1.01783321]
[1758553039128,0.20975214,113140.0,113130.0,0.73587321]
[1758553039330,0.20975214,113140.0,113130.0,1.01783321]
[1758553039733,0.20975214,113140.0,113130.0,0.73587321]
[1758553039990,0.20475214,113140.0,113130.0,0.63509686]
[1758553040133,0.20475214,113140.0,113130.0,1.01783321]
[1758553040333,0.20475214,113140.0,113130.0,1.01983321]
[1758553040563,0.20375214,113140.0,113130.0,1.01783321]
[1758553040768,0.20696214,113140.0,113130.0,0.63897686]
[1758553040972,0.20696214,113140.0,113130.0,0.70826551]
[1758553041145,0.20696214,113140.0,113130.0,0.42630551]
[1758553043264,0.87161849,113140.0,113130.0,0.34503584]
[1758553044086,0.87161849,113140.0,113130.0,0.33603584]
[1758553044458,0.88597531,113140.0,113130.0,0.33603584]
[1758553044661,0.88597531,113140.0,113130.0,0.06933584]
[1758553045003,0.8859753,113140.0,113130.0,0.06933584]
[1758553045143,0.8859753,113140.0,113130.0,0.06833584]
[1758553045915,0.8859753,113140.0,113130.0,0.06933584]
[1758553046341,0.8859353,113140.0,113130.0,0.06933584]
[1758553046931,0.8859353,113140.0,113130.0,0.06733584]
[1758553047105,0.8859353,113140.0,113130.0,0.06633584]
[1758553047304,0.8869353,113140.0,113130.0,0.06633584]
[1758553048000,0.88694405,113140.0,113130.0,0.06633584]
[1758553049520,0.88694405,113140.0,113130.0,4.719e-05]
[1758553050399,0.2223277,113140.0,113130.0,4.719e-05]
[1758553050594,0.88690405,113140.0,113130.0,4.719e-05]
[1758553050897,0.2223277,113140.0,113130.0,4.719e-05]
[1758553051109,0.2191177,113140.0,113130.0,4.719e-05]
[1758553051316,0.5009577,113140.0,113130.0,4.719e-05]
[1758553052148,0.2191177,113140.0,113130.0,4.719e-05]
[1758553052336,0.5009577,113140.0,113130.0,4.719e-05]
[1758553052543,0.1941977,113140.0,113130.0,0.09041686]
[1758553052836,0.1921377,113140.0,113130.0,0.49702321]
[1758553053041,0.4739377,113140.0,113130.0,0.49702321]
[1758553053182,0.4739377,113140.0,113130.0,0.47315321]
[1758553053597,0.4739377,113140.0,113130.0,0.09041686]
[1758553054398,0.49779692,113140.0,113130.0,0.09018206]
[1758553055131,0.21599692,113140.0,113130.0,0.09018206]
[1758553055328,0.49779692,113140.0,113130.0,0.09018206]
[1758553055542,0.49779692,113140.0,113130.0,0.15591311]
[1758553055999,0.19205692,113140.0,113130.0,0.58019823]
[1758553056209,0.19205692,113140.0,113130.0,0.56251946]
[1758553056637,0.19205692,113140.0,113130.0,0.83221946]
[1758553057045,0.19105692,113140.0,113130.0,0.80834946]
[1758553057245,0.21501899,113140.0,113130.0,0.42561311]